fUST/lending_fUST_20251103
["ID","MTS","AMOUNT","RATE_DAILY","PERIOD"]
[392942939,1762159872652,-500.0,0.00038889,30]
[392942940,1762159872661,-500.0,0.00038904,2]
[392942941,1762159872670,-860.86,0.00038952,120]
[392942942,1762159872679,-150.8,0.00038952,120]
[392942943,1762159872688,-378.84203869,0.00039,120]
[392942944,1762159872698,-237444.57513925,0.00039,120]
[392942945,1762159872707,-150.0,0.00039,120]
[392942946,1762159872716,-500.0,0.00039,15]
[392942947,1762159872725,-152.04474325,0.00039,10]
[392942948,1762159872734,-250.0,0.00039,14]
[392942949,1762159872743,-250.0,0.00039,14]
[392942950,1762159872752,-168.0,0.00039011,2]
[392942951,1762159872813,-860.86,0.00039052,120]
[392942952,1762159872823,-150.8,0.00039052,120]
[392942953,1762159872833,-700.0,0.00039134,7]
[392942954,1762159872843,-860.86,0.00039152,120]
[392942955,1762159872856,-150.8,0.00039152,120]
[392942956,1762159872866,-500.0,0.00039178,2]
[392942957,1762159872876,-156.0,0.000392,120]
[392942958,1762159872885,-860.86,0.00039252,120]
[392942959,1762159872895,-150.8,0.00039252,120]
[392942960,1762159872904,-6320.51,0.000393,14]
[392942961,1762159872913,-168.0,0.00039329,2]
[392942962,1762159872922,-860.86,0.00039352,120]
[392942963,1762159872932,-150.8,0.00039352,120]
[392942964,1762159872942,-200.0,0.00039394,120]
[392942965,1762159872952,-169.06,0.000394,30]
[392942966,1762159872961,-860.86,0.00039452,120]
[392942967,1762159872971,-150.8,0.00039452,120]
[392942968,1762159872980,-500.0,0.00039452,2]
[392942969,1762159872989,-172.0,0.00039498,2]
[392942970,1762159872998,-3166.22,0.000395,14]
[392942971,1762159873007,-504.23494559,0.0003952,5]
[392942972,1762159873017,-860.86,0.00039552,120]
[392942973,1762159873026,-150.8,0.00039552,120]
[392942974,1762159873036,-200.0,0.00039591,120]
[392942975,1762159873045,-860.86,0.00039652,120]
[392942976,1762159873055,-150.8,0.00039652,120]
[392942977,1762159873064,-533.813294,0.00039654,2]
[392942978,1762159873073,-180.59,0.000397,24]
[392942979,1762159873082,-500.0,0.00039726,2]
[392942980,1762159873092,-250.0,0.00039739,120]
[392942981,1762159873101,-860.86,0.00039752,120]
[392942982,1762159873111,-150.8,0.00039752,120]
[392942983,1762159873120,-500.0,0.00039783,30]
[392942984,1762159873129,-860.86,0.00039852,120]
[392942985,1762159873138,-150.90151845,0.00039852,120]
[392942986,1762159873148,-906.24233551,0.0003989,120]
[392942987,1762159873157,-860.86,0.00039952,120]
[392942988,1762159873166,-399.34097479,0.00039999,31]
[392942989,1762159873176,-476.46485146,0.00039999,31]
[392942990,1762159873185,-352.04682233,0.00039999,31]
[392942991,1762159873208,-632.0,0.00037543,4]
[392942992,1762159873218,-164.30077511,0.00039999,31]
[392942993,1762159873227,-382.84192378,0.00039999,31]
[392942994,1762159873236,-500.0,0.00039999,31]
[392942995,1762159873248,-500.0,0.00039999,31]
[392942996,1762159873268,-500.0,0.00039999,31]
[392942997,1762159873284,-500.0,0.00039999,31]
[392942998,1762159873305,-500.0,0.00039999,31]
[392942999,1762159873324,-500.0,0.0004,2]
[392943000,1762159873341,-990.96616805,0.0004,120]
[392943001,1762159873357,-500.0,0.0004,120]
[392943002,1762159873375,-382.00659172,0.0004,30]
[392943003,1762159873389,-354.67843323,0.0004,90]
[392943004,1762159873405,-200.0,0.0004,120]
[392943005,1762159873425,-2498.28076428,0.0004,120]
[392943006,1762159873443,-1612.88801069,0.0004,120]
[392943007,1762160009587,3627.26810474,0.00018291,2]
[392943008,1762160046576,4983.43436847,0.000183,2]
[392943009,1762160046601,16.56563153,0.000183,2]
[392943013,1762160068954,5000.0,0.000183,2]
[392943014,1762160077241,622.73568,0.000183,2]
[392943015,1762160093629,4360.70868847,0.000183,2]
[392943016,1762160093652,639.29131153,0.000183,2]
[392943017,1762160117359,5000.0,0.000183,2]
[392943018,1762160140392,4360.71868847,0.000183,2]
[392943019,1762160154679,-639.28131153,0.000183,2]
[392943020,1762160163454,5000.0,0.000183,2]
[392943023,1762160186780,3721.44737694,0.000183,2]
[392943024,1762160186802,1278.55262306,0.000183,2]
[392943028,1762160209489,5000.0,0.000183,2]
[392943042,1762160232181,3721.45737694,0.000183,2]
[392943043,1762160232202,1278.54262306,0.000183,2]
[392943045,1762160254938,5000.0,0.000183,2]
[392943047,1762160279009,3721.46737694,0.000183,2]
[392943048,1762160279032,1278.53262306,0.000183,2]
[392943049,1762160302157,5000.0,0.000183,2]
[392943050,1762160324997,3721.47737694,0.000183,2]
[392943051,1762160325021,1278.52262306,0.000183,2]
[392943052,1762160348612,5000.0,0.000183,2]
[392943053,1762160371236,3721.48737694,0.000183,2]
[392943054,1762160371259,1278.51262306,0.000183,2]
[392943057,1762160394162,5000.0,0.000183,2]
[392943058,1762160416470,3721.49737694,0.000183,2]
[392943059,1762160416493,1278.50262306,0.000183,2]
[392943060,1762160432101,152.5614591,0.00018287,2]
[392943061,1762160437148,152.5614591,0.00018289,2]
[392943062,1762160439097,5000.0,0.000183,2]
[392943063,1762160442105,152.5614591,0.00018291,2]
[392943064,1762160462285,3263.82299964,0.000183,2]
[392943065,1762160462307,1736.17700036,0.000183,2]
[392943067,1762160484805,5000.0,0.000183,2]
[392943068,1762160484910,3173.85959163,0.00018287,2]
[392943069,1762160507889,5000.0,0.000183,2]
[392943070,1762160530525,5000.0,0.000183,2]
[392943071,1762160538999,0.01,0.000183,2]
[392943072,1762160546584,299608.705906,0.0003287,120]
[392943073,1762160555377,5000.0,0.0001801,2]
[392943074,1762160577680,5000.0,0.0001801,2]
[392943076,1762160600332,5000.0,0.0001801,2]
[392943077,1762160609600,300.0,0.00018,2]
[392943078,1762160622829,5000.0,0.0001801,2]
[392943079,1762160646022,5000.0,0.0001801,2]
[392943082,1762160669079,5000.0,0.0001801,2]
[392943094,1762160691603,5000.0,0.0001801,2]
[392943099,1762160714078,5000.0,0.0001801,2]
[392943106,1762160722400,5000.0,0.0001801,2]
[392943108,1762160729400,300.0,0.00018,2]
[392943111,1762160737747,5000.0,0.0001801,2]
[392943112,1762160745541,2180.55376151,0.0001801,2]
[392943127,1762160760779,5000.0,0.0001801,2]
[392943128,1762160783330,5000.0,0.0001801,2]
[392943129,1762160790669,300.0,0.00018,2]
[392943130,1762160803099,300.0,0.00018,2]
[392943131,1762160806911,5000.0,0.0001801,2]
[392943132,1762160814342,300.0,0.00018,2]
[392943133,1762160829732,5000.0,0.0001801,2]
[392943135,1762160853465,5000.0,0.0001801,2]
[392943136,1762160875982,3228.68385519,0.0001801,2]
[392943145,1762160970749,187.7028336,0.00018,2]
[392943146,1762160971845,160.7605122,0.0001801,2]
[392943147,1762160994779,2030.21004745,0.0001801,2]
[392943148,1762161017807,799.10356133,0.0001801,2]
[392943194,1762161032325,-555.63264397,0.000182,2]
[392943196,1762161032334,-150.0,0.0001825,2]
[392943198,1762161032343,-2984.53843122,0.00018276,2]
[392943200,1762161032353,-500.0,0.000183,2]
[392943202,1762161032362,-299.04193789,0.00018366,2]
[392943204,1762161032372,-151.0,0.00018367,2]
[392943206,1762161032382,-151.0,0.00018367,2]
[392943208,1762161032391,-151.0,0.00018367,2]
[392943210,1762161032400,-151.0,0.00018367,2]
[392943212,1762161032410,-151.0,0.00018367,2]
[392943214,1762161032420,-151.0,0.00018367,2]
[392943216,1762161032430,-151.0,0.00018367,2]
[392943219,1762161032443,-151.0,0.00018367,2]
[392943221,1762161032452,-151.0,0.00018367,2]
[392943223,1762161032462,-151.0,0.00018367,2]
[392943226,1762161032471,-151.0,0.00018367,2]
[392943229,1762161032480,-151.0,0.00018367,2]
[392943232,1762161032489,-151.0,0.00018367,2]
[392943235,1762161032498,-151.0,0.00018367,2]
[392943237,1762161032508,-151.0,0.00018367,2]
[392943240,1762161032517,-151.0,0.00018367,2]
[392943243,1762161032527,-151.0,0.00018367,2]
[392943245,1762161032536,-151.0,0.00018367,2]
[392943247,1762161032546,-151.0,0.00018367,2]
[392943249,1762161032555,-151.0,0.00018367,2]
[392943251,1762161032564,-50000.0,0.00018367,2]
[392943253,1762161032573,-241.0,0.00018373,2]
[392943255,1762161032583,-1200.0,0.00018373,2]
[392943257,1762161032592,-300.0,0.00018374,2]
[392943259,1762161032602,-300.0,0.00018374,2]
[392943261,1762161032611,-300.0,0.00018374,2]
[392943263,1762161032620,-300.0,0.00018374,2]
[392943265,1762161032629,-300.0,0.00018374,2]
[392943267,1762161032638,-1200.0,0.00018375,2]
[392943269,1762161032647,-161.80295956,0.00018378,2]
[392943271,1762161032656,-500.0,0.00018391,2]
[392943274,1762161032666,-500.0,0.00018392,2]
[392943275,1762161032675,-157.67,0.000184,2]
[392943278,1762161032688,-503.71908198,0.00018468,2]
[392943280,1762161032697,-422.44000345,0.00018471,2]
[392943282,1762161032706,-300.0,0.00018759,2]
[392943284,1762161032715,-300.0,0.00018759,2]
[392943286,1762161032724,-300.0,0.00018759,2]
[392943288,1762161032733,-300.0,0.00018759,2]
[392943290,1762161032743,-300.0,0.00018759,2]
[392943292,1762161032752,-300.0,0.00018759,2]
[392943293,1762161032761,-300.0,0.00018759,2]
[392943294,1762161032770,-300.0,0.00018759,2]
[392943295,1762161032779,-300.0,0.00018759,2]
[392943296,1762161032789,-300.0,0.00018759,2]
[392943297,1762161032797,-300.0,0.00018759,2]
[392943298,1762161032806,-300.0,0.00018759,2]
[392943299,1762161032816,-300.0,0.00018759,2]
[392943300,1762161032825,-300.0,0.00018759,2]
[392943301,1762161032834,-300.0,0.00018759,2]
[392943302,1762161032843,-600.0,0.00018759,2]
[392943303,1762161032852,-503.24639306,0.00019019,2]
[392943304,1762161032861,-1136.77679888,0.00019396,2]
[392943305,1762161032870,-507.56360308,0.00019806,2]
[392943306,1762161032879,-503.53218537,0.00019806,2]
[392943307,1762161032888,-500.0,0.00019877,2]
[392943308,1762161032898,-531.96290995,0.00019877,2]
[392943309,1762161032907,-500.0,0.00019877,2]
[392943310,1762161032916,-420.0,0.00020041,2]
[392943311,1762161032925,-192.58121541,0.00020075,2]
[392943312,1762161032936,-192.46222975,0.00020076,2]
[392943313,1762161032946,-241.31685789,0.00020078,2]
[392943314,1762161032955,-203.34632844,0.00020078,2]
[392943315,1762161032965,-167.48921407,0.00020093,2]
[392943316,1762161032974,-1680.0,0.00020137,2]
[392943317,1762161032983,-177.0,0.0002025,2]
[392943319,1762161032993,-505.84600077,0.00020425,2]
[392943321,1762161033002,-720.0,0.00020635,2]
[392943322,1762161033011,-241.31685789,0.00021561,3]
[392943324,1762161033020,-167.0,0.00021858,2]
[392943326,1762161033029,-500.0,0.00021917,2]
[392943327,1762161033038,-500.0,0.00021917,2]
[392943329,1762161033047,-163.0,0.00022,2]
[392943330,1762161033057,-934.53,0.00022,7]
[392943332,1762161033066,-1551.0,0.00022071,2]
[392943334,1762161033075,-204.0,0.0002225,2]
[392943336,1762161033085,-160.0,0.000225,2]
[392943338,1762161033095,-864.0,0.00022698,20]
[392943340,1762161033104,-241.31685789,0.00023044,4]
[392943341,1762161033113,-260.0,0.00023048,2]
[392943342,1762161033123,-1909.24869661,0.00023237,2]
[392943343,1762161033132,-220.50315646,0.00023421,4]
[392943344,1762161033141,-192.46222975,0.00023421,4]
[392943345,1762161033150,-192.58121541,0.00023421,4]
[392943346,1762161033159,-360.0,0.00023596,2]
[392943347,1762161033169,-460.0,0.00024144,2]
[392943348,1762161033183,-231.0,0.0002425,2]
[392943349,1762161033193,-241.31685789,0.00024527,5]
[392943350,1762161033202,-560.0,0.00024692,2]
[392943351,1762161033212,-500.0,0.00024899,2]
[392943352,1762161033223,-31575.5875744,0.000249,2]
[392943353,1762161033233,-1000.0,0.00024968,20]
[392943354,1762161033242,-640.0,0.0002524,2]
[392943355,1762161033253,-241.55817475,0.0002601,7]
[392943356,1762161033264,-258.0,0.0002625,2]
[392943357,1762161033274,-192.65469198,0.00026766,7]
[392943358,1762161033283,-192.77379663,0.00026766,7]
[392943359,1762161033292,-174.0,0.00027,7]
[392943360,1762161033302,-167.48921407,0.00027438,4]
[392943361,1762161033312,-1000.0,0.00027465,30]
[392943362,1762161033322,-244.0,0.00027465,30]
[392943363,1762161033331,-2984.53843118,0.00027794,2]
[392943364,1762161033341,-150.56098518,0.00027948,30]
[392943365,1762161033351,-218.07515208,0.00028,14]
[392943366,1762161033361,-174.0,0.00028767,14]
[392943367,1762161033370,-934.53,0.000288,7]
[392943368,1762161033380,-203.54967477,0.00029118,7]
[392943369,1762161033390,-1000.0,0.00030211,30]
[392943370,1762161033400,-492.0,0.00030211,30]
[392943371,1762161033410,-199.0,0.0003041,14]
[392943372,1762161033420,-200.0,0.00033,2]
[392943373,1762161033431,-4151.29978899,0.00033132,2]
[392943374,1762161033441,-3574.10245242,0.00033222,2]
[392943375,1762161033572,-28001.48512198,0.00033222,2]
[392943376,1762161033583,-1000.0,0.00033232,30]
[392943377,1762161033594,-791.0,0.00033232,30]
[392943378,1762161033603,-5056.41,0.000333,14]
[392943379,1762161033613,-151.0,0.000337,13]
[392943380,1762161033622,-2948.38418437,0.00034192,2]
[392943381,1762161033634,-1202.9156046,0.00034192,2]
[392943382,1762161033643,-151.0,0.000346,20]
[392943383,1762161033653,-167.65670328,0.00034783,7]
[392943384,1762161033663,-200.0,0.00035,2]
[392943385,1762161033672,-4526.2499834,0.00035029,2]
[392943386,1762161033682,-169.07,0.000351,30]
[392943387,1762161033691,-412.0,0.00035144,2]
[392943388,1762161033701,-4151.29978897,0.00035253,2]
[392943389,1762161033710,-151.0,0.000355,16]
[392943390,1762161033719,-174.0,0.00036247,30]
[392943391,1762161033728,-151.0,0.000365,18]
[392943392,1762161033738,-1000.0,0.00036555,30]
[392943393,1762161033748,-408.04311105,0.00036555,30]
[392943394,1762161033792,-500.0,0.00018366,2]
[392943395,1762161033802,-500.0,0.00018366,2]
[392943396,1762161033812,-500.0,0.00018366,2]
[392943397,1762161033822,-500.0,0.00018366,2]
[392943398,1762161033831,-500.0,0.00018366,2]
[392943399,1762161033841,-500.0,0.00018366,2]
[392943400,1762161033851,-591.95688895,0.00036555,30]
[392943401,1762161033860,-500.0,0.00037141,60]
[392943402,1762161033870,-500.0,0.00037205,2]
[392943403,1762161033880,-500.0,0.00037205,2]
[392943404,1762161033889,-500.0,0.00037205,2]
[392943405,1762161033898,-500.0,0.00037205,2]
[392943406,1762161033907,-461.55444391,0.00037205,2]
[392943407,1762161033917,-2984.53843118,0.00037311,2]
[392943408,1762161033927,-500.0,0.00037373,5]
[392943409,1762161033937,-31575.5875744,0.00037386,3]
[392943410,1762161033946,-184.41,0.00037387,3]
[392943411,1762161033956,-553.27,0.00037387,3]
[392943412,1762161033965,-52034.56494991,0.00037397,3]
[392943430,1762161038209,-500.0,0.00018366,2]
[392943432,1762161038219,-500.0,0.00018366,2]
[392943433,1762161038228,-500.0,0.00018366,2]
[392943434,1762161038238,-134.24175926,0.00018366,2]
[392943435,1762161038249,-365.75824074,0.00018366,2]
[392943436,1762161038261,-500.0,0.00018366,2]
[392943437,1762161038271,-500.0,0.00018366,2]
[392943438,1762161038280,-500.0,0.00018366,2]
[392943439,1762161038289,-500.0,0.00018366,2]
[392943440,1762161038298,-500.0,0.00018366,2]
[392943441,1762161038308,-500.0,0.00018366,2]
[392943442,1762161038318,-500.0,0.00018366,2]
[392943444,1762161038327,-504.05951452,0.00018366,2]
[392943446,1762161038336,-500.0,0.00018366,2]
[392943447,1762161038347,-500.0,0.00018366,2]
[392943448,1762161038357,-500.0,0.00018366,2]
[392943449,1762161038367,-500.0,0.00018366,2]
[392943450,1762161038377,-500.0,0.00018366,2]
[392943451,1762161038387,-500.0,0.00018366,2]
[392943452,1762161038396,-500.0,0.00018366,2]
[392943453,1762161038405,-500.0,0.00018366,2]
[392943454,1762161038415,-500.0,0.00018366,2]
[392943455,1762161038424,-500.0,0.00018366,2]
[392943456,1762161038433,-500.0,0.00018366,2]
[392943457,1762161038443,-500.0,0.00018366,2]
[392943458,1762161038452,-500.0,0.00018366,2]
[392943459,1762161038462,-500.0,0.00018366,2]
[392943460,1762161038471,-500.0,0.00018366,2]
[392943461,1762161038480,-500.0,0.00018366,2]
[392943462,1762161038491,-170.81758333,0.00018366,2]
[392943463,1762161038501,-500.0,0.00018366,2]
[392943464,1762161038511,-500.0,0.00018366,2]
[392943465,1762161038520,-500.0,0.00018366,2]
[392943466,1762161038530,-500.0,0.00018366,2]
[392943467,1762161038540,-500.0,0.00018366,2]
[392943468,1762161038550,-650.0,0.00018366,2]
[392943469,1762161038560,-500.0,0.00018366,2]
[392943470,1762161038569,-500.0,0.00018366,2]
[392943471,1762161038579,-500.0,0.00018366,2]
[392943472,1762161038589,-500.0,0.00018366,2]
[392943473,1762161038598,-500.0,0.00018366,2]
[392943474,1762161038608,-500.0,0.00018366,2]
[392943475,1762161038617,-500.0,0.00018366,2]
[392943476,1762161038627,-500.0,0.00018366,2]
[392943477,1762161038636,-500.0,0.00018366,2]
[392943478,1762161038646,-500.0,0.00018366,2]
[392943479,1762161038655,-500.0,0.00018366,2]
[392943480,1762161038665,-500.0,0.00018366,2]
[392943481,1762161038675,-500.0,0.00018366,2]
[392943482,1762161038684,-500.0,0.00018366,2]
[392943483,1762161038693,-289.76345003,0.00018366,2]
[392943484,1762161038703,-500.0,0.00018366,2]
[392943485,1762161038713,-500.0,0.00018366,2]
[392943486,1762161038722,-500.0,0.00018366,2]
[392943487,1762161038733,-4151.29978897,0.00036313,2]
[392943488,1762161038743,-4151.29978897,0.00037373,2]
[392943489,1762161038753,-105843.37292209,0.00037397,3]
[392943490,1762161038762,-523.6091631,0.00037397,3]
[392943491,1762161038771,-1151.94015882,0.00037407,3]
[392943492,1762161038780,-41211.04897019,0.00037417,2]
[392943493,1762161038793,-189760.67390343,0.00037417,2]
[392943494,1762161038808,-2159.06805189,0.00037417,2]
[392943539,1762161040583,-258.22,0.00037417,2]
[392943541,1762161040595,-302.38100002,0.00037417,2]
[392943544,1762161040612,-2215.58800623,0.00037417,2]
[392943550,1762161040702,-2204.25097917,0.00037417,2]
[392943552,1762161040717,-9549.40225807,0.00037417,2]
[392943649,1762161043397,-2109.31421488,0.00037417,2]
[392943655,1762161046719,-266.15206126,0.00037417,2]
[392943656,1762161046729,-17613.19649,0.00037417,2]
[392943659,1762161487852,3609.76776245,0.00021,30]
[392943660,1762161487878,3390.23223755,0.00021,30]
[392943670,1762161555821,409.3,0.00032877,120]
[392943672,1762161664772,1416.27,0.0001801,2]
[392943673,1762161693687,300.0,0.00018,2]
[392943674,1762161704542,300.0,0.00018,2]
[392943675,1762161718669,869.890489,0.00013699,2]
[392943678,1762161750044,300.0,0.000137,2]
[392943679,1762161809939,209.3127417,0.000137,2]
[392943680,1762161818441,177.0083386,0.0001801,2]
[392943687,1762162045755,213.10545171,0.0001801,2]
[392943688,1762162064817,20000.02,0.00018,2]
[392943689,1762162072075,-1865.33651954,0.00018258,2]
[392943690,1762162113491,166.28889169,0.00018257,2]
[392943726,1762162224747,2463.54628139,0.00018257,2]
[392943727,1762162231463,-300.0,0.000183,2]
[392943728,1762162231498,-241.0,0.00018357,2]
[392943729,1762162231529,-346.49617854,0.00018357,2]
[392943761,1762162232663,-500.0,0.00018357,2]
[392943763,1762162232674,-500.0,0.00018357,2]
[392943765,1762162232684,-167.11772384,0.00018357,2]
[392943767,1762162232693,-500.0,0.00018357,2]
[392943769,1762162232703,-500.0,0.00018357,2]
[392943771,1762162232713,-484.90855755,0.00018357,2]
[392943773,1762162232726,-15.09144245,0.00018357,2]
[392943774,1762162232736,-500.0,0.00018357,2]
[392943775,1762162232747,-500.0,0.00018357,2]
[392943776,1762162232759,-500.0,0.00018357,2]
[392943777,1762162232769,-500.0,0.00018357,2]
[392943778,1762162232780,-500.0,0.00018357,2]
[392943779,1762162232792,-500.0,0.00018357,2]
[392943780,1762162232802,-500.0,0.00018357,2]
[392943781,1762162232811,-500.0,0.00018357,2]
[392943782,1762162232821,-523.02452999,0.00018357,2]
[392943783,1762162232832,-500.0,0.00018357,2]
[392943784,1762162232842,-62.45926288,0.00018357,2]
[392943788,1762162238392,-437.54073712,0.00018357,2]
[392943789,1762162238402,-463.42417593,0.00018357,2]
[392943790,1762162238412,-500.0,0.00018357,2]
[392943791,1762162238559,-500.0,0.00018357,2]
[392943792,1762162238570,-500.0,0.00018357,2]
[392943793,1762162238581,-377.11983327,0.00018357,2]
[392943794,1762162238590,-500.0,0.00018357,2]
[392943795,1762162238600,-500.0,0.00018357,2]
[392943796,1762162238611,-500.0,0.00018357,2]
[392943797,1762162238620,-500.0,0.00018357,2]
[392943798,1762162238630,-500.0,0.00018357,2]
[392943799,1762162238640,-500.0,0.00018357,2]
[392943800,1762162238650,-500.0,0.00018357,2]
[392943801,1762162238660,-500.0,0.00018357,2]
[392943802,1762162238670,-500.0,0.00018357,2]
[392943803,1762162238679,-500.0,0.00018357,2]
[392943804,1762162238688,-500.0,0.00018357,2]
[392943805,1762162238698,-500.0,0.00018357,2]
[392943806,1762162238708,-140.87448627,0.00018357,2]
[392943807,1762162238720,-359.12551373,0.00018357,2]
[392943808,1762162238730,-500.0,0.00018357,2]
[392943809,1762162238739,-500.0,0.00018357,2]
[392943810,1762162238748,-500.0,0.00018357,2]
[392943811,1762162238758,-500.0,0.00018357,2]
[392943812,1762162238767,-500.0,0.00018357,2]
[392943813,1762162238776,-500.0,0.00018357,2]
[392943814,1762162238786,-500.0,0.00018357,2]
[392943815,1762162238795,-500.0,0.00018357,2]
[392943816,1762162238805,-500.0,0.00018357,2]
[392943817,1762162238814,-500.0,0.00018357,2]
[392943818,1762162238823,-500.0,0.00018357,2]
[392943819,1762162238834,-500.0,0.00018357,2]
[392943820,1762162238844,-500.0,0.00018357,2]
[392943821,1762162238853,-500.0,0.00018357,2]
[392943822,1762162238863,-500.0,0.00018357,2]
[392943823,1762162238873,-500.0,0.00018357,2]
[392943824,1762162238883,-500.0,0.00018357,2]
[392943825,1762162238892,-500.0,0.00018357,2]
[392943826,1762162238902,-180.08972592,0.00018357,2]
[392943827,1762162238912,-500.0,0.00018357,2]
[392943828,1762162238922,-336.10522148,0.00018357,2]
[392943829,1762162238932,-500.0,0.00018357,2]
[392943830,1762162238941,-500.0,0.00018357,2]
[392943831,1762162238951,-500.0,0.00018357,2]
[392943832,1762162238960,-500.0,0.00018357,2]
[392943833,1762162238970,-500.0,0.00018357,2]
[392943834,1762162238979,-500.0,0.00018357,2]
[392943835,1762162238989,-500.0,0.00018357,2]
[392943836,1762162238998,-500.0,0.00018357,2]
[392943837,1762162239007,-500.0,0.00018357,2]
[392943838,1762162239017,-500.0,0.00018357,2]
[392943839,1762162239025,-500.0,0.00018357,2]
[392943840,1762162239035,-500.0,0.00018357,2]
[392943841,1762162239044,-500.0,0.00018357,2]
[392943842,1762162239053,-500.0,0.00018361,2]
[392943843,1762162239062,-500.0,0.00018363,2]
[392943844,1762162239072,-500.0,0.00018363,2]
[392943845,1762162239081,-500.0,0.00018875,2]
[392943846,1762162239090,-500.0,0.00019423,2]
[392943847,1762162239100,-869.890489,0.00020187,2]
[392943848,1762162239109,-1620.192301,0.00020234,2]
[392943849,1762162239119,-181.257559,0.00020653,2]
[392943850,1762162239128,-5511.15595764,0.00021,5]
[392943851,1762162239138,-274.83862634,0.00021,2]
[392943852,1762162239147,-358.7728937,0.00022,2]
[392943853,1762162239157,-21229.85500125,0.00026,10]
[392943854,1762162239170,-18153.72131629,0.00026,10]
[392943855,1762162239179,-1889.29686838,0.00026,30]
[392943856,1762162239188,-193.29946509,0.0002616,2]
[392943857,1762162239197,-869.890489,0.00026676,2]
[392943858,1762162239206,-1620.192301,0.00030351,2]
[392943859,1762162239215,-19304.2700535,0.00032449,2]
[392943860,1762162239225,-500.0,0.00032459,60]
[392943861,1762162239234,-17288.0747034,0.00032459,2]
[392943862,1762162239242,-747.62,0.000325,7]
[392943863,1762162239252,-869.890489,0.00033165,2]
[392943864,1762162239261,-170.0,0.00036,7]
[392943865,1762162239270,-9536.25436439,0.00036507,2]
[392943866,1762162239279,-4498.6387433,0.00036609,2]
[392943867,1762162239288,-2876.0856131,0.00036609,2]
[392943868,1762162239297,-5757.23903697,0.00036733,55]
[392943869,1762162239308,-1844.00018949,0.00037007,17]
[392943870,1762162239316,-985.0,0.00037055,2]
[392943871,1762162239326,-703.15,0.00037055,2]
[392943872,1762162239335,-1178.04544267,0.00037115,2]
[392943873,1762162239344,-404.35814623,0.00037196,2]
[392943874,1762162239354,-1843.94,0.00037233,18]
[392943875,1762162239363,-1000.0,0.00037284,2]
[392943876,1762162239372,-1000.0,0.00037284,2]
[392943877,1762162239381,-1000.0,0.00037284,2]
[392943878,1762162239390,-1000.0,0.00037284,2]
[392943879,1762162239399,-1000.0,0.00037284,2]
[392943880,1762162239408,-1000.0,0.00037284,2]
[392943881,1762162239417,-949.23595275,0.00037284,2]
[392943882,1762162239427,-10110.77152773,0.00037286,3]
[392943883,1762162239439,-630.03821621,0.00037286,3]
[392943884,1762162239450,-831.89074549,0.00037286,3]
[392943955,1762162240608,-331.33674966,0.00037286,3]
[392943959,1762162240621,-7005.41298058,0.00037286,3]
[392943978,1762162240708,300.0,0.000183,2]
[392943981,1762162240720,-18030.77743484,0.00037286,3]
[392943985,1762162240731,-1668.31245239,0.00037286,3]
[392943988,1762162240740,-2940.70083667,0.00037297,3]
[392944043,1762162243765,-1688.15574756,0.00037297,3]